bitfinex/quotes_BTCUSD_20250614
["timestamp","ask_amount","ask_price","bid_price","bid_amount"]
[1749909319004,6.62910446,105150.0,105140.0,0.0173]
[1749909319205,6.62018153,105150.0,105140.0,0.0173]
[1749909319415,6.62909338,105150.0,105140.0,0.0173]
[1749909319637,6.62909339,105150.0,105140.0,0.002]
[1749909319861,6.92864344,105150.0,105140.0,0.002]
[1749909320076,6.93375963,105150.0,105140.0,0.002]
[1749909320287,6.86211772,105150.0,105140.0,0.002]
[1749909320505,6.88387234,105150.0,105140.0,0.002]
[1749909320706,6.90164441,105150.0,105140.0,0.002]
[1749909320910,6.91055564,105150.0,105140.0,0.002]
[1749909321123,6.88382186,105150.0,105140.0,0.002]
[1749909321327,6.99490491,105150.0,105140.0,0.002]
[1749909321531,6.99490494,105150.0,105140.0,0.002]
[1749909321978,6.98599366,105150.0,105140.0,0.002]
[1749909322196,6.99490495,105150.0,105140.0,0.002]
[1749909322490,6.97708238,105150.0,105140.0,0.002]
[1749909322723,6.98219891,105150.0,105140.0,0.002]
[1749909322988,7.00670484,105150.0,105140.0,0.002]
[1749909323227,1.94779333,105150.0,105140.0,0.002]
[1749909323443,6.97328764,105150.0,105140.0,0.002]
[1749909323644,6.99779239,105150.0,105140.0,0.002]
[1749909323857,6.99779238,105150.0,105140.0,0.002]
[1749909324058,7.00670322,105150.0,105140.0,0.002]
[1749909324311,7.00670323,105150.0,105140.0,0.002]
[1749909324495,6.99779241,105150.0,105140.0,0.002]
[1749909324747,7.00670324,105150.0,105140.0,0.002]
[1749909325059,6.91055403,105150.0,105140.0,0.002]
[1749909325467,6.91055404,105150.0,105140.0,0.002]
[1749909325700,6.90387092,105150.0,105140.0,0.002]
[1749909326161,6.89273237,105150.0,105140.0,0.002]
[1749909326417,6.98888159,105150.0,105140.0,0.002]
[1749909326652,7.00670326,105150.0,105140.0,0.002]
[1749909326879,6.99110931,105150.0,105140.0,0.002]
[1749909327099,6.97328764,105150.0,105140.0,0.002]
[1749909327327,6.97997069,105150.0,105140.0,0.002]
[1749909327560,6.98888129,105150.0,105140.0,0.002]
[1749909327788,6.90387021,105150.0,105140.0,0.002]
[1749909327993,6.87202135,105150.0,105140.0,0.002]
[1749909328222,6.88984253,105150.0,105140.0,0.002]
[1749909328440,6.88984249,105150.0,105140.0,0.002]
[1749909328655,6.86533842,105150.0,105140.0,0.002]
[1749909328863,6.8898425,105150.0,105140.0,0.002]
[1749909329056,6.89875307,105150.0,105140.0,0.002]
[1749909329288,1.81533842,105150.0,105140.0,0.002]
[1749909329519,6.87202135,105150.0,105140.0,0.002]
[1749909329739,6.89875308,105150.0,105140.0,0.002]
[1749909329967,6.8831596,105150.0,105140.0,0.002]
[1749909330204,6.88315961,105150.0,105140.0,0.002]
[1749909330438,6.89875311,105150.0,105140.0,0.002]
[1749909330682,6.89875312,105150.0,105140.0,0.002]
[1749909330907,6.86533842,105150.0,105140.0,0.002]
[1749909331142,6.89875359,105150.0,105140.0,0.002]
[1749909331366,6.89875348,105150.0,105140.0,0.002]
[1749909331612,6.86533842,105150.0,105140.0,0.002]
[1749909331848,6.98601424,105150.0,105140.0,0.002]
[1749909332067,6.98602255,105150.0,105140.0,0.002]
[1749909332287,6.99494432,105150.0,105140.0,0.002]
[1749909332769,6.89210377,105150.0,105140.0,0.002]
[1749909332985,6.89879509,105150.0,105140.0,0.002]
[1749909333205,6.89879508,105150.0,105140.0,0.002]
[1749909333441,6.88987332,105150.0,105140.0,0.002]
[1749909333672,1.84210377,105150.0,105140.0,0.002]
[1749909333884,6.7522369,105150.0,105140.0,0.002]
[1749909334104,6.90102537,105150.0,105140.0,0.002]
[1749909334322,6.91663838,105150.0,105140.0,0.002]
[1749909334779,6.91663844,105150.0,105140.0,0.002]
[1749909334997,6.90771668,105150.0,105140.0,0.002]
[1749909335210,6.91663836,105150.0,105140.0,0.002]
[1749909335645,6.89217667,105150.0,105140.0,0.002]
[1749909335880,6.86373717,105150.0,105140.0,0.0181]
[1749909336100,6.87265895,105150.0,105140.0,0.0181]
[1749909336326,6.85481532,105150.0,105140.0,0.0181]
[1749909336541,6.84589354,105150.0,105140.0,0.0181]
[1749909336756,1.82656379,105150.0,105140.0,0.0181]
[1749909336969,6.89217694,105150.0,105140.0,0.0181]
[1749909337181,6.90109874,105150.0,105140.0,0.0181]
[1749909337394,6.85481534,105150.0,105140.0,0.0181]
[1749909337628,6.87265889,105150.0,105140.0,0.0181]
[1749909337906,6.86764199,105150.0,105140.0,0.0181]
[1749909338125,6.88325511,105150.0,105140.0,0.0181]
[1749909338339,6.87265905,105150.0,105140.0,0.0181]
[1749909338560,6.85704586,105150.0,105140.0,0.0181]
[1749909338777,1.79812404,105150.0,105140.0,0.0181]
[1749909338992,6.86373732,105150.0,105140.0,0.0181]
[1749909339205,6.87265917,105150.0,105140.0,0.0181]
[1749909339415,6.83920219,105150.0,105140.0,0.0181]
[1749909339632,6.88548558,105150.0,105140.0,0.0181]
[1749909339841,6.8921769,105150.0,105140.0,0.0181]
[1749909340051,6.20479092,105150.0,105140.0,0.0181]
[1749909340256,6.89440727,105150.0,105140.0,0.0181]
[1749909340490,6.9010986,105150.0,105140.0,0.0181]
[1749909340693,6.89217684,105150.0,105140.0,0.0181]
[1749909341118,6.89440712,105150.0,105140.0,0.0181]
[1749909341333,6.90109836,105150.0,105140.0,0.0181]
[1749909341545,6.8918637,105150.0,105140.0,0.002]
[1749909341754,6.89186368,105150.0,105140.0,0.002]
[1749909341967,6.90078538,105150.0,105140.0,0.002]
[1749909342182,6.89855495,105150.0,105140.0,0.002]
[1749909342386,6.90970707,105150.0,105140.0,0.002]
[1749909342591,6.90747662,105150.0,105140.0,0.002]
[1749909342802,6.89217662,105150.0,105140.0,0.002]
[1749909343008,6.87433325,105150.0,105140.0,0.0181]
[1749909343226,6.90104687,105150.0,105140.0,0.0181]
[1749909343441,6.76132812,105150.0,105140.0,0.0181]
[1749909343642,6.74574518,105150.0,105140.0,0.0181]
[1749909343849,6.76132812,105150.0,105140.0,0.0181]
[1749909344061,6.73684064,105150.0,105140.0,0.0181]
[1749909344279,6.7702327,105150.0,105140.0,0.0181]
[1749909344484,6.77023218,105150.0,105140.0,0.0181]
[1749909344703,6.76355394,105150.0,105140.0,0.0181]
[1749909344911,6.75464974,105150.0,105140.0,0.0181]
[1749909345131,1.71132698,105150.0,105140.0,0.0181]
[1749909345336,7.61107778,105150.0,105140.0,0.0181]
[1749909345542,7.60439649,105150.0,105140.0,0.0181]
[1749909345972,7.6110723,105150.0,105140.0,0.0181]
[1749909346183,7.60439433,105150.0,105140.0,0.0181]
[1749909346399,7.61107104,105150.0,105140.0,0.0181]
[1749909346608,7.58658963,105150.0,105140.0,0.0181]
[1749909346811,7.59549196,105150.0,105140.0,0.0181]
[1749909347016,7.61107073,105150.0,105140.0,0.0181]
[1749909347224,7.59549146,105150.0,105140.0,0.0181]
[1749909347646,7.58436386,105150.0,105140.0,0.0181]
[1749909347852,6.83695628,105150.0,105140.0,0.0181]
[1749909348060,6.83918182,105150.0,105140.0,0.0181]
[1749909348276,6.85476053,105150.0,105140.0,0.0181]
[1749909348489,6.84808394,105150.0,105140.0,0.0181]
[1749909348696,6.84585841,105150.0,105140.0,0.0181]
[1749909348900,6.82806702,105150.0,105140.0,0.0181]
[1749909349115,6.83698628,105150.0,105140.0,0.0181]
[1749909349332,7.60444512,105150.0,105140.0,0.0181]
[1749909349758,7.59329603,105150.0,105140.0,0.0181]
[1749909349964,7.61113445,105150.0,105140.0,0.0181]
[1749909350178,7.61113441,105150.0,105140.0,0.0181]
[1749909350430,7.60221532,105150.0,105140.0,0.0181]
[1749909350610,7.60444531,105150.0,105140.0,0.0181]
[1749909350806,7.61113482,105150.0,105140.0,0.0181]
[1749909351028,7.59329609,105150.0,105140.0,0.0181]
[1749909351234,7.58437681,105150.0,105140.0,0.0181]
[1749909351439,7.58660665,105150.0,105140.0,0.0181]
[1749909351648,7.60444534,105150.0,105140.0,0.0181]
[1749909351858,7.60444497,105150.0,105140.0,0.0181]
[1749909352071,7.60444506,105150.0,105140.0,0.0181]
[1749909352284,7.57768731,105150.0,105140.0,0.0181]
[1749909352499,7.61113449,105150.0,105140.0,0.0181]
[1749909352729,7.5955258,105150.0,105140.0,0.0181]
[1749909352966,6.0806765,105150.0,105140.0,0.0181]
[1749909353179,7.60221521,105150.0,105140.0,0.0181]
[1749909353387,2.56113443,105150.0,105140.0,0.0181]
[1749909353601,7.62173576,105150.0,105140.0,0.0181]
[1749909353820,7.63957432,105150.0,105140.0,0.0181]
[1749909354035,7.63957437,105150.0,105140.0,0.0181]
[1749909354266,7.62173582,105150.0,105140.0,0.0181]
[1749909354474,7.6328849,105150.0,105140.0,0.0181]
[1749909354677,7.63957434,105150.0,105140.0,0.0181]
[1749909354917,7.6328849,105150.0,105140.0,0.0181]
[1749909355177,7.61504638,105150.0,105140.0,0.0181]
[1749909355422,7.62396565,105150.0,105140.0,0.0181]
[1749909355676,7.63957437,105150.0,105140.0,0.0181]
[1749909355903,7.63957431,105150.0,105140.0,0.0181]
[1749909356128,7.63288487,105150.0,105140.0,0.0181]
[1749909356341,7.63957431,105150.0,105140.0,0.0181]
[1749909356542,7.6395743,105150.0,105140.0,0.0181]
[1749909356772,7.62396561,105150.0,105140.0,0.0181]
[1749909357207,7.6395743,105150.0,105140.0,0.0181]
[1749909357407,7.61504636,105150.0,105140.0,0.0181]
[1749909357624,7.6395743,105150.0,105140.0,0.0181]
[1749909357867,7.71788502,105150.0,105140.0,0.0181]
[1749909358098,7.70227633,105150.0,105140.0,0.0181]
[1749909358315,6.22310395,105150.0,105140.0,0.0181]
[1749909358517,7.73572344,105150.0,105140.0,0.0181]
[1749909358698,7.72680421,105150.0,105140.0,0.0181]
[1749909358948,7.72011479,105150.0,105140.0,0.0181]
[1749909359151,7.72903406,105150.0,105140.0,0.0181]
[1749909359581,7.72680424,105150.0,105140.0,0.0181]
[1749909359790,7.70896576,105150.0,105140.0,0.0181]
[1749909359971,7.72903405,105150.0,105140.0,0.0181]
[1749909360229,7.7268042,105150.0,105140.0,0.0181]
[1749909360449,7.7089657,105150.0,105140.0,0.0181]
[1749909360682,7.73393818,105150.0,105140.0,0.002]
[1749909360885,2.70177552,105150.0,105140.0,0.002]
[1749909361090,7.75177552,105150.0,105140.0,0.002]
[1749909361302,7.73393827,105150.0,105140.0,0.002]
[1749909361485,7.75177558,105150.0,105140.0,0.002]
[1749909361725,7.75177572,105150.0,105140.0,0.002]
[1749909361961,7.74508784,105150.0,105140.0,0.001]
[1749909362168,7.75177745,105150.0,105140.0,0.001]
[1749909362379,7.73393885,105150.0,105140.0,0.001]
[1749909362592,5.26427435,105140.0,105130.0,0.0319]
[1749909362798,6.3481169,105140.0,105130.0,0.0319]
[1749909363283,6.34811686,105140.0,105130.0,0.0319]
[1749909363485,6.32358847,105140.0,105130.0,0.0319]
[1749909363688,6.34142759,105140.0,105130.0,0.0319]
[1749909363905,6.35878625,105140.0,105130.0,0.0319]
[1749909364331,6.37662538,105140.0,105130.0,0.0319]
[1749909364551,6.34142763,105140.0,105130.0,0.0329]
[1749909364753,6.34142762,105140.0,105130.0,0.0339]
[1749909364959,6.33027815,105140.0,105130.0,0.0339]
[1749909365391,6.3481173,105140.0,105130.0,0.0339]
[1749909366035,6.34808981,105140.0,105130.0,0.0339]
[1749909366244,6.34807953,105140.0,105130.0,0.0339]
[1749909366675,6.33026785,105140.0,105130.0,0.0339]
[1749909366881,6.34807952,105140.0,105130.0,0.0339]
[1749909367090,6.39264045,105140.0,105130.0,0.0339]
[1749909367291,6.39931982,105140.0,105130.0,0.0339]
[1749909367502,6.38150815,105140.0,105130.0,0.0339]
[1749909367707,6.37482878,105140.0,105130.0,0.0339]
[1749909367951,6.38150815,105140.0,105130.0,0.0339]
[1749909368167,1.27358847,105140.0,105130.0,0.0184]
[1749909368419,6.33026777,105140.0,105130.0,0.0184]
[1749909368623,6.33026776,105140.0,105130.0,0.0184]
[1749909368825,6.33026777,105140.0,105130.0,0.0184]
[1749909369031,6.33026745,105140.0,105130.0,0.0174]
[1749909369240,6.33026745,105140.0,105130.0,0.0342]
[1749909369241,6.33026732,105140.0,105130.0,0.0342]
[1749909369452,6.33026706,105140.0,105130.0,0.0342]
[1749909369691,6.45534935,105140.0,105130.0,0.0174]
[1749909370130,6.45534935,105140.0,105130.0,0.0164]
[1749909370367,6.45534937,105140.0,105130.0,0.0164]
[1749909370582,6.44967083,105140.0,105130.0,0.0164]
[1749909370825,6.48999083,105140.0,105130.0,0.0164]
[1749909371006,6.49666956,105140.0,105130.0,0.0164]
[1749909371257,1.43999083,105140.0,105130.0,0.0164]
[1749909371517,6.48999083,105140.0,105130.0,0.0164]
[1749909371962,6.49666958,105140.0,105130.0,0.0164]
[1749909372167,6.48999083,105140.0,105130.0,0.0164]
[1749909372605,6.49666993,105140.0,105130.0,0.0164]
[1749909372806,6.49666991,105140.0,105130.0,0.0164]
[1749909373019,6.48999083,105140.0,105130.0,0.0164]
[1749909373385,6.49668024,105140.0,105130.0,0.0164]
[1749909373611,6.48999083,105140.0,105130.0,0.0164]
[1749909373823,6.49668023,105140.0,105130.0,0.0164]
[1749909374233,6.48999083,105140.0,105130.0,0.0164]
[1749909374652,6.49668014,105140.0,105130.0,0.0164]
[1749909375070,6.49668015,105140.0,105130.0,0.0164]
[1749909375387,6.48999083,105140.0,105130.0,0.0164]
[1749909375595,6.49668012,105140.0,105130.0,0.0164]
[1749909375810,6.48999083,105140.0,105130.0,0.0164]
[1749909376045,6.49668012,105140.0,105130.0,0.0164]
[1749909376883,6.4966801,105140.0,105130.0,0.0164]
[1749909377087,6.40053088,105140.0,105130.0,0.0164]
[1749909377472,6.39384161,105140.0,105130.0,0.0164]
[1749909377674,1.35053088,105140.0,105130.0,0.0164]
[1749909377900,6.40053088,105140.0,105130.0,0.0164]
[1749909378307,6.39384161,105140.0,105130.0,0.0164]
[1749909378547,6.40053088,105140.0,105130.0,0.0164]
[1749909378758,1.35053088,105140.0,105130.0,0.0164]
[1749909378963,6.40053088,105140.0,105130.0,0.0164]
[1749909379708,6.40053089,105140.0,105130.0,0.0164]
[1749909380164,6.34920826,105140.0,105130.0,0.0164]
[1749909380394,6.36532087,105140.0,105130.0,0.0164]
[1749909380538,6.40051249,105140.0,105130.0,0.0164]
[1749909380915,6.34920826,105140.0,105130.0,0.0164]
[1749909381314,6.34920418,105140.0,105130.0,0.0164]
[1749909381566,6.4453534,105140.0,105130.0,0.0164]
[1749909381766,6.36532204,105140.0,105130.0,0.0164]
[1749909382076,6.40051104,105140.0,105130.0,0.0164]
[1749909382296,6.34251899,105140.0,105130.0,0.0164]
[1749909382509,6.34920418,105140.0,105130.0,0.0164]
[1749909382716,6.36532415,105140.0,105130.0,0.0164]
[1749909382938,6.40051579,105140.0,105130.0,0.0164]
[1749909383131,6.40051593,105140.0,105130.0,0.0164]
[1749909383335,6.36532415,105140.0,105130.0,0.0164]
[1749909383554,6.34920433,105140.0,105130.0,0.0164]
[1749909383756,6.36532538,105140.0,105130.0,0.0164]
[1749909383910,1.35051871,105140.0,105130.0,0.0164]
[1749909384112,6.40051871,105140.0,105130.0,0.0321]
[1749909384320,6.37102698,105140.0,105130.0,0.0321]
[1749909384528,6.34920433,105140.0,105130.0,0.0321]
[1749909384759,6.34251899,105140.0,105130.0,0.0321]
[1749909384992,6.34920434,105140.0,105130.0,0.0321]
[1749909385201,6.34251899,105140.0,105130.0,0.0321]
[1749909385351,1.29251899,105140.0,105130.0,0.0321]
[1749909385551,6.34920434,105140.0,105130.0,0.0321]
[1749909385931,6.40052495,105140.0,105130.0,0.0321]
[1749909386576,6.3938396,105140.0,105130.0,0.0321]
[1749909386772,6.40052496,105140.0,105130.0,0.0321]
[1749909386981,6.3938396,105140.0,105130.0,0.0321]
[1749909387232,6.40052513,105140.0,105130.0,0.0321]
[1749909387393,6.3938396,105140.0,105130.0,0.0321]
[1749909387602,6.40052518,105140.0,105130.0,0.0321]
[1749909388346,6.3938396,105140.0,105130.0,0.0321]
[1749909388863,6.40052518,105140.0,105130.0,0.0321]
[1749909389535,6.3938396,105140.0,105130.0,0.0321]
[1749909389743,6.40052518,105140.0,105130.0,0.0321]
[1749909389951,6.3938396,105140.0,105130.0,0.0321]
[1749909390740,1.3438396,105140.0,105130.0,0.0321]
[1749909390950,6.40052488,105140.0,105130.0,0.0321]
[1749909391565,6.3938396,105140.0,105130.0,0.0321]
[1749909391773,5.64421514,105140.0,105130.0,0.0321]
[1749909391984,6.40052502,105140.0,105130.0,0.0321]
[1749909392185,6.4005249,105140.0,105130.0,0.0321]
[1749909392482,6.43854015,105140.0,105130.0,0.0321]
[1749909392901,6.43185486,105140.0,105130.0,0.0321]
[1749909393305,6.43854015,105140.0,105130.0,0.0321]
[1749909393715,6.43185486,105140.0,105130.0,0.0321]
[1749909393936,6.43854015,105140.0,105130.0,0.0321]
[1749909394151,6.43854014,105140.0,105130.0,0.0321]
[1749909394367,6.43854015,105140.0,105130.0,0.0321]
[1749909395177,6.45636768,105140.0,105130.0,0.0321]
[1749909395353,6.44968239,105140.0,105130.0,0.0321]
[1749909395556,6.21193364,105140.0,105130.0,0.0321]
[1749909395771,6.40884153,105140.0,105130.0,0.0321]
[1749909396124,6.4021562,105140.0,105130.0,0.0321]
[1749909396316,6.4021671,105140.0,105130.0,0.0321]
[1749909396439,6.41167804,105140.0,105130.0,0.0321]
[1749909396646,6.41836745,105140.0,105130.0,0.0321]
[1749909396895,6.40052901,105140.0,105130.0,0.0321]
[1749909397087,6.41836745,105140.0,105130.0,0.0321]
[1749909397311,6.41167803,105140.0,105130.0,0.0321]
[1749909397529,6.40052901,105140.0,105130.0,0.0321]
[1749909397671,6.3938396,105140.0,105130.0,0.0321]
[1749909397878,6.41836745,105140.0,105130.0,0.0321]
[1749909398293,6.40052901,105140.0,105130.0,0.0321]
[1749909398495,6.3938396,105140.0,105130.0,0.0321]
[1749909398702,6.41836744,105140.0,105130.0,0.0321]
[1749909398937,6.41167803,105140.0,105130.0,0.0321]
[1749909399151,6.41836744,105140.0,105130.0,0.0321]
[1749909399357,6.41836388,105140.0,105130.0,0.0321]
[1749909399567,6.40052804,105140.0,105130.0,0.0321]
[1749909399773,6.41836388,105140.0,105130.0,0.0321]
[1749909399981,6.3938396,105140.0,105130.0,0.0321]
[1749909400190,6.40052804,105140.0,105130.0,0.0321]
[1749909400401,1.35052804,105140.0,105130.0,0.0321]
[1749909400598,6.40052804,105140.0,105130.0,0.0321]
[1749909400878,6.3938396,105140.0,105130.0,0.0321]
[1749909401312,6.40052804,105140.0,105130.0,0.0321]
[1749909401717,6.3938396,105140.0,105130.0,0.0321]
[1749909402151,6.40052804,105140.0,105130.0,0.0321]
[1749909402880,6.3938396,105140.0,105130.0,0.0321]
[1749909403555,6.3937196,105140.0,105130.0,0.0321]
[1749909404004,6.37189671,105140.0,105130.0,0.0321]
[1749909404137,6.36520815,105140.0,105130.0,0.0321]
[1749909404344,6.21653668,105140.0,105130.0,0.0321]
[1749909404635,6.37189668,105140.0,105130.0,0.0321]
[1749909404812,1.3218967,105140.0,105130.0,0.0321]
[1749909405021,6.3718967,105140.0,105130.0,0.0321]
[1749909405225,6.37189671,105140.0,105130.0,0.0321]
[1749909405425,6.36520815,105140.0,105130.0,0.0321]
[1749909405626,6.3937196,105140.0,105130.0,0.0321]
[1749909406085,6.40040815,105140.0,105130.0,0.0321]
[1749909406280,6.3937196,105140.0,105130.0,0.0321]
[1749909406456,6.41824429,105140.0,105130.0,0.0321]
[1749909406856,1.35040815,105140.0,105130.0,0.0321]
[1749909407075,6.41824428,105140.0,105130.0,0.0321]
[1749909407234,6.41155573,105140.0,105130.0,0.0321]
[1749909407437,6.3937196,105140.0,105130.0,0.0321]
[1749909407684,6.40040815,105140.0,105130.0,0.0321]
[1749909407896,6.41155573,105140.0,105130.0,0.0321]
[1749909408021,6.41824428,105140.0,105130.0,0.0321]
[1749909408227,6.3937196,105140.0,105130.0,0.0321]
[1749909408477,6.41824427,105140.0,105130.0,0.0321]
[1749909408915,6.41824429,105140.0,105130.0,0.0321]
[1749909409150,6.41155573,105140.0,105130.0,0.0321]
[1749909409363,6.3937196,105140.0,105130.0,0.0321]
[1749909409574,6.41824426,105140.0,105130.0,0.0321]
[1749909409780,6.41824428,105140.0,105130.0,0.0321]
[1749909409979,6.41155573,105140.0,105130.0,0.0321]
[1749909410205,6.41824428,105140.0,105130.0,0.0321]
[1749909410663,6.41155572,105140.0,105130.0,0.0321]
[1749909410839,6.41824428,105140.0,105130.0,0.0321]
[1749909411065,6.40040815,105140.0,105130.0,0.0321]
[1749909411263,6.41824429,105140.0,105130.0,0.0321]
[1749909411478,6.41824784,105140.0,105130.0,0.0321]
[1749909412052,1.36155832,105140.0,105130.0,0.0321]
[1749909412210,6.41824783,105140.0,105130.0,0.0321]
[1749909412412,6.40040911,105140.0,105130.0,0.0321]
[1749909412768,6.3937196,105140.0,105130.0,0.0321]
[1749909412971,6.41824782,105140.0,105130.0,0.0321]
[1749909413112,6.41155831,105140.0,105130.0,0.0321]
[1749909413312,6.41824782,105140.0,105130.0,0.0321]
[1749909413513,6.41155831,105140.0,105130.0,0.0321]
[1749909413976,6.41824782,105140.0,105130.0,0.0321]
[1749909414176,1.35040911,105140.0,105130.0,0.0321]
[1749909414373,6.41824783,105140.0,105130.0,0.0321]
[1749909414619,6.3937196,105140.0,105130.0,0.0321]
[1749909414814,6.41824784,105140.0,105130.0,0.0321]
[1749909415392,6.41155832,105140.0,105130.0,0.0321]
[1749909415618,6.41824784,105140.0,105130.0,0.0321]
[1749909415821,6.40040912,105140.0,105130.0,0.0321]
[1749909416440,6.3937196,105140.0,105130.0,0.0321]
[1749909416608,6.40040911,105140.0,105130.0,0.0321]
[1749909416970,6.3937196,105140.0,105130.0,0.0321]
[1749909417181,6.40040911,105140.0,105130.0,0.0321]
[1749909417576,6.3937196,105140.0,105130.0,0.0321]
[1749909417782,6.40040923,105140.0,105130.0,0.0321]
[1749909417983,6.40040902,105140.0,105130.0,0.0321]
[1749909418188,6.3937196,105140.0,105130.0,0.0321]
[1749909418392,6.40040902,105140.0,105130.0,0.0321]
[1749909419207,6.40040928,105140.0,105130.0,0.0321]
[1749909419640,6.40040937,105140.0,105130.0,0.0321]
[1749909420000,6.3937196,105140.0,105130.0,0.0321]
[1749909420196,6.40040938,105140.0,105130.0,0.0321]
[1749909420400,6.3937196,105140.0,105130.0,0.0321]
[1749909420602,6.49655911,105140.0,105130.0,0.0321]
[1749909420773,6.48986882,105140.0,105130.0,0.0321]
[1749909420972,6.3937196,105140.0,105130.0,0.0321]
[1749909421490,6.40041121,105140.0,105130.0,0.0321]
[1749909421687,6.40041124,105140.0,105130.0,0.0321]
[1749909421893,6.3937196,105140.0,105130.0,0.0321]
[1749909422293,6.40041124,105140.0,105130.0,0.0321]
[1749909422499,6.40041125,105140.0,105130.0,0.0321]
[1749909422752,6.3937196,105140.0,105130.0,0.0321]
[1749909422956,6.40041106,105140.0,105130.0,0.0321]
[1749909423156,6.40041105,105140.0,105130.0,0.0321]
[1749909423769,6.40041106,105140.0,105130.0,0.0321]
[1749909423946,6.3937196,105140.0,105130.0,0.0321]
[1749909424119,6.40041106,105140.0,105130.0,0.0321]
[1749909424321,6.3937196,105140.0,105130.0,0.0321]
[1749909424516,6.4004111,105140.0,105130.0,0.0321]
[1749909424719,6.49656032,105140.0,105130.0,0.0321]
[1749909424945,6.4004111,105140.0,105130.0,0.0321]
[1749909425265,6.3937196,105140.0,105130.0,0.0321]
[1749909425673,6.4004111,105140.0,105130.0,0.0321]
[1749909426238,6.40041111,105140.0,105130.0,0.0321]
[1749909426814,6.3937196,105140.0,105130.0,0.0321]
[1749909428047,6.40041126,105140.0,105130.0,0.0321]
[1749909428459,6.3937196,105140.0,105130.0,0.0321]
[1749909428875,6.20477126,105140.0,105130.0,0.0321]
[1749909429055,6.3936396,105140.0,105130.0,0.0321]
[1749909429285,6.40033134,105140.0,105130.0,0.0321]
[1749909429496,6.3936396,105140.0,105130.0,0.0321]
[1749909430116,6.40033134,105140.0,105130.0,0.0321]
[1749909430321,6.41817598,105140.0,105130.0,0.0321]
[1749909430545,6.40033133,105140.0,105130.0,0.0321]
[1749909430746,6.41817591,105140.0,105130.0,0.0321]
[1749909430946,6.41148419,105140.0,105130.0,0.0321]
[1749909431073,6.3936396,105140.0,105130.0,0.0321]
[1749909431276,6.41817591,105140.0,105130.0,0.0321]
[1749909431505,6.40033132,105140.0,105130.0,0.0321]
[1749909431714,6.41148419,105140.0,105130.0,0.0321]
[1749909432613,6.40033132,105140.0,105130.0,0.0321]
[1749909432816,6.41817593,105140.0,105130.0,0.0321]
[1749909433025,6.40033132,105140.0,105130.0,0.0321]
[1749909433227,6.3936396,105140.0,105130.0,0.0321]
[1749909433449,6.41148421,105140.0,105130.0,0.0321]
[1749909433647,6.40033132,105140.0,105130.0,0.0321]
[1749909433858,6.3936396,105140.0,105130.0,0.0321]
[1749909434077,6.41148416,105140.0,105130.0,0.0321]
[1749909434274,6.41817592,105140.0,105130.0,0.0321]
[1749909434474,6.41817589,105140.0,105130.0,0.0321]
[1749909434681,6.41817536,105140.0,105130.0,0.0321]
[1749909434856,6.41148379,105140.0,105130.0,0.0321]
[1749909435055,6.40033113,105140.0,105130.0,0.0321]
[1749909435256,1.35033113,105140.0,105130.0,0.0321]
[1749909435570,6.40033113,105140.0,105130.0,0.0321]
[1749909436352,6.3936396,105140.0,105130.0,0.0321]
[1749909436796,6.40033113,105140.0,105130.0,0.0321]
[1749909436999,6.3936396,105140.0,105130.0,0.0321]
[1749909437213,5.2436978,105140.0,105130.0,0.2578935]
[1749909437384,0.07355956,105140.0,105130.0,1.0332263]
[1749909437581,0.03904277,105140.0,105130.0,0.27691656]
[1749909437815,0.07928277,105140.0,105130.0,0.25087565]
[1749909438013,0.83559251,105140.0,105130.0,0.25087565]
[1749909438246,0.84510354,105140.0,105130.0,0.25087565]
[1749909438595,0.80486354,105140.0,105130.0,0.25087565]
[1749909438791,0.84510354,105140.0,105130.0,0.25087565]
[1749909441458,0.07928277,105140.0,105130.0,0.25087565]
[1749909441677,0.83559251,105140.0,105130.0,0.25087565]
[1749909441888,0.82608148,105140.0,105130.0,0.34702487]
[1749909442326,0.83559233,105140.0,105130.0,0.34702487]
[1749909442795,0.001,105140.0,105130.0,0.34702487]
[1749909443028,0.05075031,105140.0,105130.0,0.34702487]
[1749909443272,0.001,105140.0,105130.0,0.34702487]
[1749909443510,0.04124,105140.0,105130.0,0.34702487]
[1749909443738,0.04124,105140.0,105130.0,1.10333461]
[1749909443980,0.001,105140.0,105130.0,1.19957637]
[1749909444655,0.001,105140.0,105130.0,1.35481637]
[1749909444890,0.37686265,105150.0,105140.0,0.25175484]
[1749909445119,0.06759306,105150.0,105140.0,0.34790406]
[1749909446735,0.05808357,105150.0,105140.0,0.34790406]
[1749909446963,0.06759306,105150.0,105140.0,0.34790406]
[1749909447200,0.06759297,105150.0,105140.0,0.34790406]
[1749909447425,0.06859297,105150.0,105140.0,0.34790406]
[1749909447640,0.05908357,105150.0,105140.0,0.34790406]
[1749909447846,0.06859297,105150.0,105140.0,0.34790406]
[1749909448069,0.07810246,105150.0,105140.0,0.34790406]
[1749909448313,0.08761214,105150.0,105140.0,0.34790406]
[1749909448535,0.08761214,105150.0,105140.0,0.25175484]
[1749909448772,0.07810246,105150.0,105140.0,0.25175484]
[1749909448979,0.08761214,105150.0,105140.0,0.25175484]
[1749909450616,0.85343174,105150.0,105140.0,0.25175484]
[1749909451456,0.84392188,105150.0,105140.0,0.25175484]
[1749909452000,0.85343174,105150.0,105140.0,0.25175484]
[1749909452425,0.84392188,105150.0,105140.0,0.25175484]
[1749909452635,0.85343174,105150.0,105140.0,0.25175484]
[1749909454913,0.86294178,105150.0,105140.0,0.25175484]
[1749909455411,0.85343174,105150.0,105140.0,0.25175484]
[1749909455671,0.097122,105150.0,105140.0,0.25175484]
[1749909455886,0.85343174,105150.0,105140.0,0.25175484]
[1749909457055,0.86294178,105150.0,105140.0,0.25175484]
[1749909457551,0.85343174,105150.0,105140.0,0.25175484]
[1749909458806,0.85343183,105150.0,105140.0,0.25175484]
[1749909459046,0.85343174,105150.0,105140.0,0.25175484]
[1749909461987,0.83558817,105150.0,105140.0,0.25175484]
[1749909462821,0.81656863,105150.0,105140.0,0.25175484]
[1749909463034,0.06976857,105150.0,105140.0,0.25175484]
[1749909463269,0.06025889,105150.0,105140.0,0.25175484]
[1749909463505,0.001,105150.0,105140.0,1.1042138]
[1749909465604,0.0105094,105150.0,105140.0,1.1042138]
[1749909466240,0.001,105150.0,105140.0,1.1042138]